bitfinex/quotes_BTCUSD_20230115
["timestamp","ask_amount","ask_price","bid_price","bid_amount"]
[1673776391446,0.50110799,20666.0,20664.0,0.48955332]
[1673776392667,0.50078912,20666.0,20664.0,0.48955332]
[1673776392926,0.50178912,20666.0,20664.0,0.56755332]
[1673776393187,0.00031887,20665.0,20664.0,0.48955332]
[1673776393432,0.00031887,20665.0,20664.0,0.57605332]
[1673776393674,0.38189751,20665.0,20664.0,0.0085]
[1673776393919,0.38189751,20665.0,20664.0,0.078]
[1673776394172,0.38189751,20665.0,20664.0,0.0085]
[1673776394431,0.38289751,20665.0,20664.0,0.078]
[1673776394686,0.38289751,20665.0,20662.0,0.49675615]
[1673776394687,0.86580651,20665.0,20662.0,0.49675615]
[1673776394938,0.86680651,20665.0,20664.0,0.078]
[1673776396223,0.86580651,20665.0,20663.0,0.0085]
[1673776396481,0.86680651,20665.0,20664.0,0.078]
[1673776396705,0.388649,20664.0,20663.0,0.0085]
[1673776397480,0.388649,20664.0,20663.0,0.0865]
[1673776397729,0.388649,20664.0,20663.0,0.0085]
[1673776397958,0.389649,20664.0,20663.0,0.0865]
[1673776398209,0.388649,20664.0,20663.0,0.09224]
[1673776398741,0.388649,20664.0,20663.0,0.0085]
[1673776399044,0.389649,20664.0,20663.0,0.078]
[1673776399255,0.388649,20664.0,20662.0,0.49675615]
[1673776399755,0.389649,20664.0,20663.0,0.078]
[1673776400009,0.38074645,20664.0,20663.0,0.078]
[1673776400260,0.37974645,20664.0,20662.0,0.49675615]
[1673776400503,0.38074645,20664.0,20662.0,0.57475615]
[1673776400745,0.38074645,20664.0,20662.0,0.49675615]
[1673776400746,0.37974645,20664.0,20662.0,0.49675615]
[1673776401249,0.38074645,20664.0,20663.0,0.078]
[1673776401504,0.001,20664.0,20663.0,0.078]
[1673776402267,0.3612045,20665.0,20662.0,0.49683928]
[1673776402512,0.001,20664.0,20662.0,0.57483928]
[1673776402756,0.3612045,20665.0,20662.0,0.49683928]
[1673776403259,0.001,20664.0,20663.0,0.078]
[1673776403757,0.3612045,20665.0,20663.0,0.35610364]
[1673776404017,0.50078912,20666.0,20663.0,0.35610364]
[1673776404298,0.40631714,20665.0,20662.0,0.078]
[1673776405071,0.40531714,20665.0,20661.0,0.41253082]
[1673776405374,0.00131887,20664.0,20663.0,0.078]
[1673776405572,0.00131887,20664.0,20661.0,0.41253082]
[1673776405573,0.00031887,20664.0,20661.0,0.41253082]
[1673776405819,0.00031887,20664.0,20662.0,0.49551626]
[1673776406072,0.00031887,20664.0,20662.0,0.41751626]
[1673776406341,0.40631714,20665.0,20662.0,0.41759939]
[1673776406568,0.45945243,20664.0,20662.0,0.41759939]
[1673776406830,0.45945243,20664.0,20662.0,0.49559939]
[1673776407086,0.46045243,20664.0,20662.0,0.49559939]
[1673776407343,0.46045243,20664.0,20662.0,0.57359939]
[1673776407591,0.45945243,20664.0,20662.0,0.49559939]
[1673776407841,0.45945243,20664.0,20662.0,0.49551626]
[1673776408605,0.46045243,20664.0,20662.0,0.156]
[1673776408848,0.4607713,20664.0,20661.0,0.45419824]
[1673776409125,0.46145243,20664.0,20662.0,0.078]
[1673776409351,0.45945243,20664.0,20661.0,0.45419824]
[1673776409598,0.46045243,20664.0,20662.0,0.078]
[1673776409849,0.4607713,20664.0,20662.0,0.078]
[1673776410093,0.4607713,20664.0,20661.0,0.93819924]
[1673776410345,0.45945243,20664.0,20661.0,1.01619924]
[1673776410612,0.46045243,20664.0,20661.0,1.01619924]
[1673776411115,1.46860012,20666.0,20662.0,0.1]
[1673776411382,0.00031887,20665.0,20662.0,0.19072595]
[1673776411607,0.001,20664.0,20662.0,0.079]
[1673776411852,0.43615962,20665.0,20662.0,8.313e-05]
[1673776412341,0.43615962,20665.0,20661.0,0.93819924]
[1673776412582,0.43615962,20665.0,20662.0,0.079]
[1673776412835,0.45075299,20664.0,20661.0,0.45419824]
[1673776413079,0.45075299,20664.0,20662.0,0.079]
[1673776413325,0.45075299,20664.0,20661.0,0.45419824]
[1673776413587,0.45075299,20664.0,20661.0,0.53319824]
[1673776414588,0.45075299,20664.0,20661.0,0.45419824]
[1673776414854,0.45175299,20664.0,20661.0,0.53319824]
[1673776415367,0.001,20664.0,20661.0,0.079]
[1673776415624,0.968872,20664.0,20661.0,0.079]
[1673776415867,0.32155,20663.0,20661.0,0.079]
[1673776416115,0.500662,20662.0,20661.0,0.079]
[1673776416361,0.48398,20662.0,20661.0,0.079]
[1673776416612,0.80553,20662.0,20661.0,0.079]
[1673776417091,1.76718557,20662.0,20661.0,0.079]
[1673776417343,1.76718557,20662.0,20657.0,0.36632758]
[1673776417589,1.44563557,20662.0,20657.0,0.36632758]
[1673776417831,1.44563557,20662.0,20661.0,0.079]
[1673776418079,1.44563557,20662.0,20657.0,1.1789325]
[1673776418324,1.44563557,20662.0,20657.0,0.51052824]
[1673776418571,1.44563557,20662.0,20658.0,0.199567]
[1673776418818,1.44563557,20662.0,20657.0,0.70125419]
[1673776419067,1.44563557,20662.0,20657.0,0.91783419]
[1673776419341,1.44563557,20662.0,20658.0,0.69114502]
[1673776419584,0.42884827,20661.0,20658.0,0.68229897]
[1673776419836,0.42884827,20661.0,20659.0,8.314e-05]
[1673776420106,0.42884827,20661.0,20658.0,0.49157302]
[1673776420358,0.42884827,20661.0,20659.0,0.199561]
[1673776420617,0.42984827,20661.0,20660.0,0.199551]
[1673776420863,0.42916714,20661.0,20658.0,0.49157302]
[1673776421123,0.43016714,20661.0,20658.0,0.71477368]
[1673776421369,0.43016714,20661.0,20659.0,0.199561]
[1673776421617,0.42916714,20661.0,20658.0,0.63577368]
[1673776421873,0.43016714,20661.0,20660.0,0.079]
[1673776422920,0.001,20661.0,20660.0,0.079]
[1673776423183,0.49613185,20664.0,20660.0,0.6548485]
[1673776423439,0.001,20661.0,20660.0,1.67746588]
[1673776423696,0.49613185,20664.0,20660.0,2.86734806]
[1673776423977,0.001,20661.0,20660.0,2.54170796]
[1673776424280,0.49613185,20664.0,20660.0,2.56735036]
[1673776424561,0.49713185,20664.0,20660.0,2.24198584]
[1673776424806,0.49713185,20664.0,20661.0,0.57882965]
[1673776425058,0.49713185,20664.0,20661.0,0.86329565]
[1673776425314,0.001,20664.0,20661.0,1.5380246]
[1673776425604,0.38104006,20664.0,20662.0,0.199524]
[1673776425889,0.48198642,20663.0,20661.0,0.86329565]
[1673776426679,1.12875148,20666.0,20661.0,0.95529565]
[1673776426957,0.44043958,20665.0,20661.0,1.0540216]
[1673776427213,0.42075862,20664.0,20661.0,1.1450216]
[1673776427422,0.42043975,20664.0,20661.0,0.95429565]
[1673776428211,0.42043975,20664.0,20661.0,0.37929365]
[1673776428439,1.12873848,20666.0,20661.0,0.47029365]
[1673776428440,0.36732063,20663.0,20661.0,0.47029365]
[1673776428940,0.36700176,20663.0,20661.0,0.47029365]
[1673776429203,0.36732063,20663.0,20661.0,0.47029365]
[1673776429429,0.36700176,20663.0,20661.0,0.37929365]
[1673776429690,0.36700176,20663.0,20661.0,0.47029365]
[1673776429929,0.36700176,20663.0,20661.0,0.37929365]
[1673776430192,0.36700176,20663.0,20661.0,0.47029365]
[1673776430445,0.36700176,20663.0,20659.0,0.84453666]
[1673776430446,0.36700176,20663.0,20659.0,1.0045231]
[1673776430737,0.36700176,20663.0,20661.0,0.091]
[1673776431480,0.36700176,20663.0,20661.0,8.292e-05]
[1673776431754,0.36700176,20663.0,20660.0,0.46231246]
[1673776432471,0.36700176,20663.0,20661.0,8.292e-05]
[1673776432723,0.36732063,20663.0,20660.0,0.46231246]
[1673776432980,0.36732063,20663.0,20660.0,0.55331246]
[1673776433233,0.36732063,20663.0,20660.0,0.46231246]
[1673776433477,0.36732063,20663.0,20661.0,0.091]
[1673776433725,0.36732063,20663.0,20660.0,0.46239539]
[1673776433987,0.36732063,20663.0,20660.0,0.55339539]
[1673776434231,0.36732063,20663.0,20660.0,0.46231246]
[1673776434485,0.36732063,20663.0,20661.0,8.292e-05]
[1673776434736,0.36700176,20663.0,20661.0,8.292e-05]
[1673776434997,0.36700176,20663.0,20660.0,0.46231246]
[1673776435245,0.36700176,20663.0,20661.0,0.091]
[1673776435764,0.36700176,20663.0,20661.0,0.09108292]
[1673776437819,0.14406236,20665.0,20661.0,0.76580487]
[1673776438075,0.37460394,20665.0,20662.0,0.56509048]
[1673776438848,0.37460394,20665.0,20662.0,0.37436453]
[1673776439096,0.37460394,20665.0,20662.0,0.56509048]
[1673776439383,0.37460394,20665.0,20662.0,0.37436453]
[1673776439617,0.37460394,20665.0,20662.0,0.95033853]
[1673776440378,0.64485148,20666.0,20663.0,0.45008326]
[1673776440637,0.50078912,20666.0,20663.0,0.45008326]
[1673776441405,0.50078912,20666.0,20663.0,0.93403826]
[1673776441908,0.92843869,20666.0,20663.0,0.93403826]
[1673776442157,0.92843869,20666.0,20663.0,1.02603826]
[1673776442408,0.92843869,20666.0,20663.0,0.93403826]
[1673776442658,0.92843869,20666.0,20663.0,1.50899426]
[1673776442923,0.50078912,20666.0,20663.0,1.41799426]
[1673776443178,0.50078912,20666.0,20664.0,0.43654094]
[1673776444220,0.50078912,20666.0,20665.0,0.08532742]
[1673776444739,0.50078912,20666.0,20665.0,0.08526536]
[1673776445003,0.50078912,20666.0,20665.0,0.10231456]
[1673776445520,0.50078912,20666.0,20665.0,0.62078012]
[1673776446564,0.49578912,20666.0,20665.0,0.62078012]
[1673776446818,0.49087988,20667.0,20665.0,0.62078012]
[1673776447095,0.49087988,20667.0,20665.0,0.61933413]
[1673776447826,0.49087988,20667.0,20665.0,0.52833413]
[1673776448078,0.14406236,20668.0,20665.0,0.61933413]
[1673776448333,0.55694224,20668.0,20665.0,0.61933413]
[1673776449085,0.55694224,20668.0,20665.0,0.52833413]
[1673776449584,0.00038093,20667.0,20665.0,0.61933413]
[1673776449838,0.43625077,20667.0,20665.0,0.61925476]
[1673776451094,0.43625077,20667.0,20665.0,0.52825476]
[1673776451354,0.14406236,20668.0,20665.0,0.61925476]
[1673776451611,0.61807538,20669.0,20666.0,0.35952386]
[1673776451876,0.46072894,20668.0,20666.0,0.35952386]
[1673776452863,0.46072894,20668.0,20666.0,0.45152386]
[1673776453127,0.46072894,20668.0,20667.0,0.08388803]
[1673776453388,0.45089916,20669.0,20667.0,0.5836159]
[1673776453900,0.74279319,20670.0,20667.0,0.5836159]
[1673776454150,0.52674888,20670.0,20667.0,0.5836159]
[1673776455668,0.38268652,20670.0,20668.0,0.48242232]
[1673776456897,0.38268652,20670.0,20668.0,0.54842232]
[1673776457151,0.14406236,20671.0,20668.0,0.54842232]
[1673776457407,0.14406236,20671.0,20668.0,0.73914827]
[1673776457667,0.60488329,20671.0,20668.0,0.54842232]
[1673776457927,0.15685903,20672.0,20668.0,0.25672595]
[1673776458183,0.01279667,20672.0,20669.0,0.45205083]
[1673776458464,0.01279667,20672.0,20670.0,0.00124687]
[1673776458966,0.32155,20671.0,20670.0,0.08498687]
[1673776459216,0.01279667,20672.0,20670.0,0.08498687]
[1673776459733,0.01279667,20672.0,20670.0,0.17598687]
[1673776459986,0.01279667,20672.0,20670.0,0.08498687]
[1673776460243,0.01279667,20672.0,20670.0,0.17698687]
[1673776460505,0.01279667,20672.0,20670.0,0.08498687]
[1673776460754,0.01279667,20672.0,20671.0,0.35871248]
[1673776461263,0.33434667,20672.0,20671.0,0.35871248]
[1673776461769,0.01279667,20672.0,20671.0,0.35871248]
[1673776462033,0.01279667,20672.0,20671.0,0.45071248]
[1673776462314,0.01279667,20672.0,20671.0,0.35871248]
[1673776462629,0.01279667,20672.0,20671.0,0.44971248]
[1673776462813,0.01279667,20672.0,20671.0,0.35871248]
[1673776463068,0.01279667,20672.0,20671.0,0.45071248]
[1673776463338,0.01279667,20672.0,20667.0,1.79970052]
[1673776463601,0.01279667,20672.0,20671.0,0.091]
[1673776464144,0.01279667,20672.0,20671.0,0.55856796]
[1673776464400,0.01279667,20672.0,20671.0,0.46756796]
[1673776464654,0.01279667,20672.0,20671.0,0.7360692]
[1673776465686,0.01279667,20672.0,20671.0,0.6450692]
[1673776465947,0.01279667,20672.0,20671.0,1.2283382]
[1673776466225,0.01279667,20672.0,20671.0,1.1373382]
[1673776466497,0.01279667,20672.0,20671.0,1.2283382]
[1673776467580,0.01279667,20672.0,20671.0,1.1373382]
[1673776468361,0.01279667,20672.0,20671.0,0.57179626]
[1673776468629,0.50352167,20672.0,20669.0,0.41532209]
[1673776468894,0.32155,20671.0,20668.0,0.42484268]
[1673776469192,0.984266,20670.0,20668.0,0.42484268]
[1673776469446,0.32193093,20669.0,20667.0,0.47995602]
[1673776469699,0.016682,20668.0,20665.0,0.0170492]
[1673776469955,0.483786,20671.0,20670.0,0.49077309]
[1673776470236,0.01279667,20672.0,20670.0,0.49077309]
[1673776470776,0.01279667,20672.0,20671.0,0.091]
[1673776471299,0.33434667,20672.0,20671.0,0.091]
[1673776471552,0.72993096,20672.0,20671.0,0.09091627]
[1673776471832,0.72993096,20672.0,20668.0,0.49296083]
[1673776472087,0.016682,20671.0,20670.0,0.091]
[1673776472349,0.016682,20671.0,20668.0,0.49296083]
[1673776472616,0.32155,20670.0,20668.0,0.49296083]
[1673776472884,0.32155,20670.0,20666.0,0.48388]
[1673776472885,0.40838096,20672.0,20669.0,0.36853068]
[1673776473195,0.40838096,20672.0,20669.0,0.55873868]
[1673776473453,0.32155,20671.0,20669.0,0.36801273]
[1673776473712,0.016682,20670.0,20669.0,0.36801273]
[1673776473964,0.45069163,20671.0,20669.0,0.36801273]
[1673776474787,0.01279667,20672.0,20670.0,0.08425793]
[1673776475568,0.01279667,20672.0,20670.0,0.56804393]
[1673776475856,0.01279667,20672.0,20670.0,1.05183593]
[1673776476671,0.01279667,20672.0,20671.0,0.48520885]
[1673776477683,0.01279667,20672.0,20671.0,0.57720885]
[1673776479747,0.01279667,20672.0,20671.0,1.06097785]
[1673776480993,0.41369585,20672.0,20671.0,0.092]
[1673776481253,0.73524585,20672.0,20671.0,0.092]
[1673776481531,2.11497703,20672.0,20671.0,0.092]
[1673776481782,1.72134976,20672.0,20671.0,0.092]
[1673776482049,1.66232627,20672.0,20671.0,0.092]
[1673776482359,2.14163679,20672.0,20671.0,0.092]
[1673776482612,2.06232671,20672.0,20671.0,0.092]
[1673776482862,1.70322004,20672.0,20671.0,0.085]
[1673776483391,1.8472824,20672.0,20671.0,0.085]
[1673776483670,2.06232671,20672.0,20668.0,0.41718266]
[1673776483928,0.016682,20671.0,20665.0,0.7269055]
[1673776484183,1.451416,20670.0,20666.0,0.45180784]
[1673776484459,0.79970573,20669.0,20666.0,0.45180784]
[1673776484734,0.500521,20668.0,20666.0,0.45180784]
[1673776485002,0.483839,20668.0,20666.0,0.45180784]
[1673776485257,0.96198973,20669.0,20666.0,0.45180784]
[1673776486022,0.483794,20670.0,20666.0,0.64253379]
[1673776486251,0.483794,20670.0,20666.0,0.72753379]
[1673776486252,0.484794,20670.0,20666.0,0.72753379]
[1673776486497,0.483794,20670.0,20666.0,0.64253379]
[1673776486752,0.001,20669.0,20666.0,0.72753379]
[1673776486995,0.001,20669.0,20667.0,0.43081094]
[1673776488023,0.95559427,20670.0,20667.0,0.43081094]
[1673776488281,0.479214,20669.0,20667.0,0.43081094]
[1673776488535,0.47883307,20669.0,20667.0,0.43081094]
[1673776489090,0.47983307,20669.0,20667.0,0.51581094]
[1673776489373,0.00038093,20668.0,20667.0,0.51581094]
[1673776489634,0.47883307,20669.0,20667.0,0.43081094]
[1673776489905,0.47983307,20669.0,20667.0,0.51581094]
[1673776490194,0.47883307,20669.0,20667.0,0.43081094]
[1673776490448,0.001,20668.0,20667.0,0.51581094]
[1673776490692,0.479214,20669.0,20667.0,0.43081094]
[1673776490944,0.47983307,20669.0,20667.0,0.51581094]
[1673776491454,0.001,20669.0,20667.0,0.51581094]
[1673776491701,0.00138093,20669.0,20667.0,0.43081094]
[1673776491949,0.93138191,20670.0,20667.0,0.51581094]
[1673776491950,0.001,20668.0,20667.0,0.51581094]
[1673776492231,0.93138191,20670.0,20667.0,0.43081094]
[1673776492476,0.35656512,20669.0,20667.0,0.51581094]
[1673776492986,0.35556512,20669.0,20667.0,0.43081094]
[1673776493238,0.001,20668.0,20667.0,0.51581094]
[1673776494535,0.35556512,20669.0,20667.0,0.43081094]
[1673776494794,0.35656512,20669.0,20667.0,0.51581094]
[1673776495049,0.35556512,20669.0,20666.0,0.48940141]
[1673776495370,0.001,20668.0,20667.0,0.085]
[1673776495561,0.00038093,20668.0,20666.0,0.48940141]
[1673776495822,0.00038093,20668.0,20667.0,0.085]
[1673776496082,0.00038093,20668.0,20666.0,0.48940141]
[1673776496358,0.35656512,20669.0,20666.0,0.57440141]
[1673776496599,0.35556512,20669.0,20666.0,0.48940141]
[1673776497372,0.35594605,20669.0,20666.0,0.48940141]
[1673776497628,0.35594605,20669.0,20667.0,0.00108324]
[1673776497884,0.001,20668.0,20666.0,0.57440141]
[1673776498146,0.001,20668.0,20666.0,0.48940141]
[1673776498414,0.001,20668.0,20666.0,0.57440141]
[1673776498675,0.35694605,20669.0,20666.0,0.48940141]
[1673776498931,0.001,20668.0,20666.0,0.57548471]
[1673776499960,0.001,20668.0,20667.0,0.37093521]
[1673776500714,0.56943221,20670.0,20667.0,0.37093521]
[1673776500715,0.42536985,20670.0,20667.0,0.37093521]
[1673776500977,0.001,20668.0,20667.0,0.64666116]
[1673776501230,0.001,20668.0,20667.0,0.45593521]
[1673776501739,0.42481885,20670.0,20667.0,0.37093521]
[1673776501999,0.42581885,20670.0,20667.0,0.45593521]
[1673776502234,0.42481885,20670.0,20667.0,0.37093521]
[1673776502518,0.001,20668.0,20667.0,0.45593521]
[1673776503312,0.001,20668.0,20667.0,0.65539721]
[1673776503585,0.43442475,20678.0,20672.0,0.22939]
[1673776503847,0.43442475,20678.0,20671.0,0.22939]
[1673776503848,0.19219516,20677.0,20671.0,0.7620005]
[1673776504144,0.7127281,20686.0,20674.0,2.15044397]
[1673776504145,0.36187578,20681.0,20674.0,2.15044397]
[1673776504416,0.43425093,20684.0,20678.0,0.35905627]
[1673776504417,0.2253,20683.0,20678.0,0.35905627]
[1673776504657,0.47125184,20685.0,20680.0,0.33996327]
[1673776504957,0.38992428,20687.0,20681.0,0.19072595]
[1673776505213,0.6868,20688.0,20682.0,0.19072595]
[1673776505507,0.97628282,20688.0,20683.0,0.19072595]
[1673776505789,0.97628282,20688.0,20681.0,0.51515822]
[1673776505790,0.00899,20685.0,20680.0,0.093]
[1673776506057,0.00899,20685.0,20675.0,0.61893647]
[1673776506058,0.016682,20684.0,20675.0,0.61893647]
[1673776506307,0.016682,20684.0,20675.0,0.80966242]
[1673776506308,0.32155,20683.0,20675.0,0.80966242]
[1673776506566,0.23592195,20684.0,20675.0,0.59422866]
[1673776506864,0.74642195,20684.0,20676.0,0.19072595]
[1673776507118,0.74642195,20684.0,20677.0,0.19072595]
[1673776507370,0.3,20683.0,20678.0,0.19072595]
[1673776507629,0.32155,20682.0,20678.0,0.19072595]
[1673776507897,0.32155,20682.0,20675.0,1.42882347]
[1673776507898,0.009,20683.0,20675.0,0.483657]
[1673776508173,0.009,20683.0,20673.0,0.483709]
[1673776508174,0.47720169,20681.0,20673.0,0.483709]
[1673776508480,0.58717578,20685.0,20673.0,0.483709]
[1673776508481,0.22657863,20686.0,20679.0,0.47720169]
[1673776508735,0.29994895,20687.0,20685.0,0.47720169]
[1673776508990,0.00338323,20690.0,20686.0,1.66639317]
[1673776509302,0.48881592,20689.0,20687.0,0.51208495]
[1673776509562,0.00338323,20690.0,20688.0,1.0993764]
[1673776509905,0.02825433,20694.0,20689.0,3.40968137]
[1673776509906,1.16e-05,20694.0,20689.0,3.40968137]
[1673776510168,1.16e-05,20694.0,20690.0,1.61908698]
[1673776510425,0.5129,20699.0,20691.0,0.42979]
[1673776510682,0.40980942,20694.0,20692.0,0.50669495]
[1673776510930,0.40980942,20694.0,20693.0,9.813e-05]
[1673776511182,0.40980942,20694.0,20693.0,0.40531513]
[1673776511703,0.40980942,20694.0,20693.0,0.321477]
[1673776512264,0.49680726,20696.0,20693.0,0.329977]
[1673776512517,0.38741911,20698.0,20694.0,0.215725]
[1673776512788,0.08647207,20700.0,20695.0,0.62066895]
[1673776513034,0.08647207,20700.0,20696.0,0.40642695]
[1673776513345,0.08647207,20700.0,20697.0,0.321407]
[1673776513612,0.08647207,20700.0,20695.0,0.5035007]
[1673776513851,0.14342548,20700.0,20693.0,0.4035007]
[1673776514110,0.14342548,20700.0,20696.0,0.092]
[1673776514111,0.62653248,20700.0,20696.0,0.092]
[1673776514396,0.56957907,20700.0,20696.0,0.19072595]
[1673776514681,0.57057907,20700.0,20696.0,0.19072595]
[1673776514988,0.56957907,20700.0,20696.0,0.19072595]
[1673776515938,0.56957907,20700.0,20697.0,0.00029623]
[1673776516188,0.57057907,20700.0,20696.0,0.19072595]
[1673776516438,0.56957907,20700.0,20696.0,0.19072595]
[1673776516696,0.57057907,20700.0,20696.0,0.078]
[1673776516966,0.56957907,20700.0,20696.0,0.19072595]
[1673776517257,0.57057907,20700.0,20697.0,0.078]
[1673776517562,0.75425388,20700.0,20694.0,0.4035007]
[1673776517807,0.75425388,20700.0,20690.0,0.40216671]
[1673776517808,1.0,20699.0,20690.0,0.40216671]
[1673776518079,1.449534,20697.0,20696.0,0.078]
[1673776518342,0.79074928,20697.0,20696.0,0.078]
[1673776518601,1.22599436,20697.0,20696.0,0.078]
[1673776518893,2.00917236,20697.0,20696.0,0.078]
[1673776519071,2.00917236,20697.0,20693.0,0.55966679]
[1673776519378,1.70917236,20697.0,20693.0,0.55966679]
[1673776519624,1.23099436,20697.0,20694.0,0.40634585]
[1673776519902,1.23099436,20697.0,20693.0,0.1]
[1673776519903,0.74281636,20697.0,20695.0,0.37842667]
[1673776520136,0.74281636,20697.0,20693.0,0.57082769]
[1673776520137,0.44424508,20697.0,20693.0,0.57082769]
[1673776520385,0.91840808,20697.0,20694.0,0.48130426]
[1673776520642,0.492163,20697.0,20690.0,0.1]
[1673776520894,0.3,20696.0,20690.0,0.29072595]
[1673776521144,0.966454,20695.0,20690.0,0.57683051]
[1673776521664,1.449662,20695.0,20690.0,0.57683051]
[1673776521913,1.449662,20695.0,20690.0,0.76755646]
[1673776522164,0.966435,20695.0,20690.0,0.69812185]
[1673776522434,0.48600333,20696.0,20695.0,0.36586024]
[1673776523451,1.98357233,20696.0,20695.0,0.36586024]
[1673776523691,1.03193404,20696.0,20695.0,0.36586024]
[1673776524973,0.98393404,20696.0,20695.0,0.36586024]
[1673776525786,1.03193404,20696.0,20695.0,0.36586024]
[1673776526027,1.33193404,20696.0,20695.0,0.36586024]
[1673776526283,1.43482958,20696.0,20695.0,0.36586024]
[1673776527855,1.03193404,20696.0,20695.0,0.36586024]
[1673776528090,1.33193404,20696.0,20695.0,0.36586024]
[1673776528622,1.28393404,20696.0,20695.0,0.36586024]
[1673776529155,1.33193404,20696.0,20695.0,0.36586024]
[1673776529386,1.28393404,20696.0,20695.0,0.36586024]
[1673776529895,1.33193404,20696.0,20695.0,0.36586024]
[1673776530899,1.28393404,20696.0,20695.0,0.36586024]
[1673776531148,1.37393404,20696.0,20695.0,0.36586024]
[1673776533939,1.54744794,20696.0,20695.0,0.36586024]
[1673776534281,1.95443863,20696.0,20695.0,0.36586024]
[1673776534464,1.86443863,20696.0,20695.0,0.36586024]
[1673776534727,1.95443863,20696.0,20695.0,0.36586024]
[1673776534981,1.57890077,20696.0,20695.0,0.36586024]
[1673776535491,1.48890077,20696.0,20695.0,0.36586024]
[1673776535767,1.57890077,20696.0,20695.0,0.36586024]
[1673776536806,1.48890077,20696.0,20695.0,0.36586024]
[1673776537042,1.57990077,20696.0,20695.0,0.36586024]
[1673776537538,1.67090077,20696.0,20695.0,0.36586024]
[1673776538325,1.67090077,20696.0,20690.0,0.19072595]
[1673776538603,0.3,20695.0,20689.0,1.33231894]
[1673776538822,1.44975,20694.0,20689.0,1.33231894]
[1673776539078,0.3,20693.0,20689.0,1.33231894]
[1673776539333,0.966566,20692.0,20689.0,1.33231894]
[1673776540104,0.966566,20692.0,20690.0,0.00010508]
[1673776540357,0.975566,20692.0,20689.0,1.33231894]
[1673776541127,0.3,20691.0,20689.0,1.33231894]
[1673776541392,0.89265116,20690.0,20689.0,1.33231894]
[1673776542155,0.89265116,20690.0,20689.0,1.33242403]
[1673776542385,0.483325,20690.0,20689.0,1.47427953]
[1673776542940,0.98004215,20690.0,20689.0,1.47427953]
[1673776543196,0.98004215,20690.0,20689.0,1.33242403]
[1673776543447,0.98904215,20690.0,20689.0,1.33231894]
[1673776543707,0.037188,20690.0,20689.0,1.33231894]
[1673776544222,0.520513,20690.0,20689.0,1.33231894]
[1673776544476,0.037188,20690.0,20689.0,1.33242403]
[1673776545010,0.037188,20690.0,20689.0,1.33267403]
[1673776546036,0.009,20690.0,20689.0,1.33267403]
[1673776547581,0.492325,20690.0,20689.0,2.40214408]
[1673776547834,0.492325,20690.0,20689.0,2.54523933]
[1673776548591,0.492325,20690.0,20689.0,2.54513424]
[1673776549389,0.492325,20690.0,20689.0,2.97231467]
[1673776549680,0.009,20690.0,20689.0,2.97231467]
[1673776549897,0.009,20690.0,20689.0,2.68736392]
[1673776550152,0.009,20690.0,20689.0,2.75860161]
[1673776551185,0.483281,20692.0,20690.0,0.01799999]
[1673776551454,0.483237,20694.0,20691.0,0.5015479]
[1673776551715,0.88561753,20695.0,20692.0,0.64357919]
[1673776552000,0.88561753,20695.0,20692.0,0.93430514]
[1673776552259,0.88561753,20695.0,20693.0,0.00210165]
[1673776552755,0.40239353,20695.0,20693.0,0.00210165]
[1673776553007,0.483165,20697.0,20693.0,0.24540428]
[1673776553265,0.44889897,20695.0,20693.0,0.55107933]
[1673776553513,0.44889897,20695.0,20693.0,0.14540428]
[1673776553762,0.44889897,20695.0,20693.0,0.00210165]
[1673776554020,0.483165,20697.0,20693.0,0.24540428]
[1673776554272,1.0142304,20697.0,20694.0,0.38635795]
[1673776554532,1.0142304,20697.0,20694.0,0.72038653]
[1673776554798,0.082,20695.0,20694.0,0.52966058]
[1673776555045,1.0142304,20697.0,20694.0,0.38635795]
[1673776555046,0.4490654,20697.0,20694.0,0.38635795]
[1673776555264,0.45003582,20696.0,20694.0,0.52966058]
[1673776555516,0.45003582,20696.0,20694.0,0.38635795]
[1673776556760,0.45003582,20696.0,20694.0,0.38735795]
[1673776557007,0.483166,20697.0,20695.0,0.1]
[1673776557269,0.083,20696.0,20695.0,0.1]
[1673776557785,0.083,20696.0,20694.0,0.38735795]
[1673776558046,0.44329546,20700.0,20694.0,0.61512881]
[1673776558315,0.076,20696.0,20695.0,1.69104481]
[1673776558547,0.076,20696.0,20695.0,3.18024186]
[1673776559365,0.08647207,20700.0,20696.0,0.076]
[1673776559636,0.08647207,20700.0,20698.0,0.3580956]
[1673776559944,0.08647207,20700.0,20699.0,0.321408]
[1673776560194,0.08647207,20700.0,20699.0,0.429908]
[1673776560449,0.09347207,20700.0,20699.0,0.1085]
[1673776560697,0.08647207,20700.0,20698.0,0.52440286]
[1673776560974,0.09347207,20700.0,20699.0,0.08374]
[1673776561245,0.08647207,20700.0,20699.0,0.08374]
[1673776561503,0.09347207,20700.0,20699.0,0.098509]
[1673776562019,0.09347207,20700.0,20699.0,0.015]
[1673776562279,0.09347207,20700.0,20697.0,0.75240285]
[1673776562280,0.57797869,20700.0,20698.0,0.40201749]
[1673776562523,0.58497869,20700.0,20698.0,0.015]
[1673776562773,1.06808069,20700.0,20697.0,0.22799999]
[1673776563019,1.07508069,20700.0,20699.0,0.015]
[1673776563274,1.06108069,20700.0,20698.0,0.4034507]
[1673776563528,0.56957407,20700.0,20698.0,0.015]
[1673776563804,1.05266507,20700.0,20697.0,0.22799999]
[1673776564039,1.40956203,20700.0,20697.0,0.22799999]
[1673776564309,1.41656203,20700.0,20699.0,0.014]
[1673776564543,1.35966507,20700.0,20699.0,0.014]
[1673776564804,1.84275607,20700.0,20699.0,0.014]
[1673776565293,1.85084607,20700.0,20699.0,0.014]
[1673776565539,0.1,20699.0,20697.0,0.22799999]
[1673776565805,1.449414,20698.0,20697.0,0.22799999]
[1673776566073,1.749414,20698.0,20697.0,0.22799999]
[1673776566582,1.449414,20698.0,20697.0,0.22799999]
[1673776567086,1.92683254,20698.0,20697.0,0.22799999]
[1673776567396,1.803414,20698.0,20697.0,0.22799999]
[1673776567927,2.26172983,20698.0,20697.0,0.22799999]
[1673776568179,1.803414,20698.0,20697.0,0.22799999]
[1673776568423,1.94645421,20698.0,20697.0,0.22799999]
[1673776568936,1.749414,20698.0,20697.0,0.22799999]
[1673776569189,1.94645421,20698.0,20697.0,0.22799999]
[1673776569697,1.89245421,20698.0,20697.0,0.22799999]
[1673776569961,1.749414,20698.0,20697.0,0.22799999]
[1673776570211,1.838414,20698.0,20697.0,0.22799999]
[1673776570983,2.2222234,20698.0,20697.0,0.22799999]
[1673776571534,1.9222234,20698.0,20697.0,0.22799999]
[1673776571986,1.8332234,20698.0,20697.0,0.22799999]
[1673776572232,1.9222234,20698.0,20697.0,0.22799999]
[1673776572484,1.8332234,20698.0,20697.0,0.22799999]